bitfinex/quotes_BTCUSD_20251213
["timestamp","ask_amount","ask_price","bid_price","bid_amount"]
[1765665326050,0.05010274,90244.0,90243.0,0.50934984]
[1765665326367,0.05010274,90244.0,90243.0,0.56742927]
[1765665326900,0.05010274,90244.0,90243.0,0.56842927]
[1765665327719,0.05010274,90244.0,90243.0,0.56742927]
[1765665327941,0.05010274,90244.0,90243.0,0.56942927]
[1765665328598,0.05010274,90244.0,90243.0,0.86012927]
[1765665329056,0.05010274,90244.0,90243.0,0.86212927]
[1765665330245,0.05010274,90244.0,90243.0,0.75132927]
[1765665330456,0.05010274,90244.0,90243.0,0.86212927]
[1765665331406,0.0505208,90244.0,90243.0,0.86212927]
[1765665332112,0.0505208,90244.0,90243.0,0.86012927]
[1765665332328,0.0515208,90244.0,90243.0,0.86012927]
[1765665332509,0.0515208,90244.0,90243.0,0.85812927]
[1765665333471,8e-07,90244.0,90243.0,0.85812927]
[1765665333692,0.0004,90250.0,90249.0,0.67312749]
[1765665333898,0.0004,90250.0,90249.0,0.76143347]
[1765665334105,0.0004,90250.0,90249.0,0.78623347]
[1765665334307,0.0004,90250.0,90249.0,0.81950829]
[1765665336204,0.0024,90250.0,90249.0,0.81950829]
[1765665338695,0.0024,90250.0,90249.0,0.89876289]
[1765665338895,0.0024,90250.0,90249.0,0.81950829]
[1765665347153,0.00023885,90252.0,90251.0,0.67312258]
[1765665347353,0.00023885,90252.0,90251.0,0.8000302]
[1765665347578,0.0504,90260.0,90256.0,0.6731103]
[1765665347905,0.0504,90260.0,90256.0,0.7069903]
[1765665348238,0.0504,90260.0,90256.0,0.7317903]
[1765665348439,0.0504,90260.0,90256.0,0.76506224]
[1765665349016,0.0004,90270.0,90269.0,0.67307839]
[1765665349237,0.0004,90270.0,90269.0,0.75651466]
[1765665349425,0.0004,90270.0,90269.0,0.78131466]
[1765665349604,0.0004,90270.0,90269.0,0.78575026]
[1765665351004,0.0004,90280.0,90279.0,0.38235385]
[1765665351211,0.00051585,90280.0,90279.0,0.44103385]
[1765665351546,0.00051585,90280.0,90279.0,0.53280675]
[1765665351694,0.00051585,90280.0,90279.0,0.53724197]
[1765665352429,0.00051585,90280.0,90279.0,0.54024197]
[1765665354247,0.00051585,90280.0,90279.0,0.83394197]
[1765665354437,0.0004,90290.0,90279.0,0.83394197]
[1765665354438,0.0004,90290.0,90289.0,0.38232931]
[1765665354641,0.0004,90290.0,90289.0,0.4952711]
[1765665354890,0.00153403,90290.0,90289.0,0.5200711]
[1765665355096,0.00153403,90290.0,90289.0,0.55333116]
[1765665355525,0.00153403,90290.0,90289.0,0.55533116]
[1765665355707,0.00153403,90290.0,90289.0,0.55733116]
[1765665360758,0.00153403,90290.0,90289.0,0.44653116]
[1765665361158,0.00153403,90290.0,90289.0,0.55733116]
[1765665362587,0.0004,90300.0,90299.0,0.38230478]
[1765665362798,0.0004,90300.0,90299.0,0.46621142]
[1765665362996,0.0004,90300.0,90299.0,0.48937142]
[1765665363324,0.0004,90300.0,90299.0,0.52263145]
[1765665363668,0.0004,90300.0,90299.0,0.52363145]
[1765665364715,0.0004,90300.0,90299.0,0.70353145]
[1765665364916,0.0004,90300.0,90299.0,0.81433145]
[1765665365319,0.0004,90300.0,90299.0,0.74304427]
[1765665365669,0.0004,90300.0,90299.0,0.81433145]
[1765665366209,0.0004,90300.0,90299.0,0.85383949]
[1765665367418,0.0004,90300.0,90299.0,0.83181145]
[1765665368205,0.00069833,90300.0,90299.0,0.83181145]
[1765665368862,0.00069833,90300.0,90299.0,0.83381145]
[1765665369372,0.00069833,90300.0,90299.0,0.83281145]
[1765665369668,0.00069833,90300.0,90299.0,0.83581145]
[1765665370161,0.00069833,90300.0,90299.0,0.83081145]
[1765665370542,0.00269833,90300.0,90299.0,0.54011145]
[1765665371323,0.00269833,90300.0,90299.0,0.42931145]
[1765665371534,0.00269833,90300.0,90299.0,0.54011145]
[1765665373426,0.00269833,90300.0,90299.0,0.59946961]
[1765665373638,0.00269833,90300.0,90299.0,0.54011145]
[1765665374032,0.00269833,90300.0,90299.0,0.42931145]
[1765665374274,0.00269833,90300.0,90299.0,0.54011145]
[1765665374574,0.00269833,90300.0,90299.0,0.59946961]
[1765665374785,0.00269833,90300.0,90299.0,0.59939424]
[1765665374932,0.00269833,90300.0,90299.0,0.54011145]
[1765665375135,0.00269833,90300.0,90299.0,0.59939392]
[1765665375357,0.00269833,90300.0,90299.0,0.58191302]
[1765665375564,0.00269833,90300.0,90299.0,0.54011145]
[1765665377593,0.00269833,90300.0,90299.0,0.41183145]
[1765665378473,0.00269833,90300.0,90299.0,0.47118571]
[1765665379270,0.00269833,90300.0,90299.0,0.41183145]
[1765665381194,0.00269833,90300.0,90299.0,0.47123964]
[1765665381404,0.00269833,90300.0,90299.0,0.03326003]
[1765665381405,0.0420012,90300.0,90299.0,0.03326003]
[1765665381664,0.22151092,90289.0,90284.0,0.03962899]
[1765665381955,0.22312379,90289.0,90287.0,0.03326759]
[1765665382149,0.02186566,90288.0,90285.0,0.03962899]
[1765665382331,0.02347853,90288.0,90284.0,0.05070514]
[1765665382505,0.02347853,90288.0,90284.0,0.03962899]
[1765665382506,0.23259162,90287.0,90284.0,0.03962899]
[1765665382709,0.00161287,90287.0,90284.0,0.05070514]
[1765665382977,0.23420491,90287.0,90284.0,0.03962899]
[1765665383181,0.23420491,90287.0,90285.0,0.01655359]
[1765665383352,0.25578491,90287.0,90285.0,0.01655359]
[1765665384165,0.03797,90286.0,90285.0,0.01655359]
[1765665384366,0.2326025,90283.0,90279.0,0.03962899]
[1765665384600,0.0110764,90282.0,90281.0,0.03326991]
[1765665384803,0.01268927,90282.0,90281.0,0.03326991]
[1765665385068,0.00161287,90282.0,90281.0,0.03326991]
[1765665386446,0.00161287,90282.0,90281.0,0.03426991]
[1765665386657,0.00161287,90282.0,90281.0,0.03834112]
[1765665387507,0.00161287,90282.0,90281.0,0.03934112]
[1765665389710,0.00161287,90282.0,90281.0,0.26087167]
[1765665390830,0.01747287,90282.0,90281.0,0.26087167]
[1765665390987,0.03905287,90282.0,90281.0,0.26087167]
[1765665391185,0.01747287,90282.0,90281.0,0.26087167]
[1765665391728,0.01747287,90282.0,90281.0,0.25987167]
[1765665391890,0.01747287,90282.0,90281.0,0.25887167]
[1765665392099,0.01747287,90282.0,90281.0,0.25987167]
[1765665392426,0.01747287,90282.0,90281.0,0.26087167]
[1765665393373,0.00161287,90282.0,90281.0,0.26087167]
[1765665401749,0.03905287,90282.0,90281.0,0.26087167]
[1765665401951,0.03905287,90282.0,90281.0,0.03934112]
[1765665402156,0.06674388,90282.0,90281.0,0.002]
[1765665408905,0.28827198,90282.0,90281.0,0.002]
[1765665409125,0.26058097,90282.0,90281.0,0.002]
[1765665410111,0.26058097,90282.0,90281.0,0.001]
[1765665410319,0.26058097,90282.0,90276.0,0.01107714]
[1765665410320,0.23261065,90280.0,90276.0,0.01107714]
[1765665410520,0.23261065,90280.0,90277.0,0.07707499]
[1765665410521,0.0387687,90279.0,90277.0,0.07707499]
[1765665410720,0.0603487,90279.0,90277.0,0.07707499]
[1765665410929,0.03744,90278.0,90277.0,0.07707499]
[1765665411936,0.03744,90278.0,90277.0,0.07807499]
[1765665413226,0.03744,90278.0,90277.0,0.07907499]
[1765665413456,0.25897791,90278.0,90277.0,0.002]
[1765665414201,0.3143729,90278.0,90277.0,0.002]
[1765665414901,0.66037791,90278.0,90277.0,0.002]
[1765665415095,0.66037791,90278.0,90277.0,0.001]
[1765665415324,0.66037791,90278.0,90255.0,0.0704879]
[1765665415325,0.01107898,90261.0,90256.0,0.03962899]
[1765665415489,0.08869573,90257.0,90256.0,0.06643503]
[1765665415688,0.10386573,90257.0,90256.0,0.05535544]
[1765665415885,0.12544573,90257.0,90256.0,0.05535544]
[1765665416098,0.12544573,90257.0,90256.0,0.27694735]
[1765665416300,0.12544573,90257.0,90256.0,0.01572645]
[1765665417063,0.12544573,90257.0,90256.0,0.01672645]
[1765665417646,0.12544573,90257.0,90256.0,0.01772645]
[1765665418789,0.14292573,90257.0,90256.0,0.01772645]
[1765665418992,0.14292573,90257.0,90256.0,0.00211585]
[1765665419331,0.19832072,90257.0,90256.0,0.00211585]
[1765665419567,0.14292573,90257.0,90256.0,0.00211585]
[1765665420766,0.19832072,90257.0,90256.0,0.00211585]
[1765665420980,0.14292573,90257.0,90256.0,0.00211585]
[1765665421517,0.25362573,90257.0,90256.0,0.00211585]
[1765665421718,0.25362573,90257.0,90256.0,0.00111585]
[1765665422959,0.25362573,90257.0,90256.0,0.00011585]
[1765665430353,0.14292573,90257.0,90256.0,0.00011585]
[1765665430511,0.22130057,90257.0,90256.0,0.00011585]
[1765665430717,0.16590558,90257.0,90256.0,0.00011585]
[1765665431699,0.16590558,90257.0,90256.0,0.0246672]
[1765665431902,0.14292573,90257.0,90256.0,0.0246672]
[1765665433228,0.19832072,90257.0,90256.0,0.00011585]
[1765665433435,0.2260194,90257.0,90256.0,0.00011585]
[1765665434071,0.17062441,90257.0,90256.0,0.00011585]
[1765665439013,0.10617573,90257.0,90256.0,0.00011585]
[1765665440137,0.10617573,90257.0,90256.0,0.00111585]
[1765665440332,0.12134573,90257.0,90256.0,0.00111585]
[1765665440635,0.12134573,90257.0,90256.0,0.00211585]
[1765665441301,0.12134573,90257.0,90256.0,0.07564527]
[1765665441842,0.10617573,90257.0,90256.0,0.07564527]
[1765665445519,0.08869573,90257.0,90256.0,0.07564527]
[1765665467825,0.09948573,90257.0,90256.0,0.07564527]
[1765665480330,0.13670573,90257.0,90256.0,0.07564527]
[1765665480528,0.24740573,90257.0,90256.0,0.00211585]
[1765665481727,0.24740573,90257.0,90256.0,0.00111585]
[1765665482538,0.24740573,90257.0,90256.0,0.00211585]
[1765665483077,0.24740573,90257.0,90256.0,0.00111585]
[1765665510841,0.26488573,90257.0,90256.0,0.00111585]
[1765665533719,0.24740573,90257.0,90256.0,0.00111585]
[1765665534040,0.26488573,90257.0,90256.0,0.00111585]
[1765665537128,0.15418573,90257.0,90256.0,0.00111585]
[1765665537280,0.29258441,90257.0,90256.0,0.00111585]
[1765665537482,0.26488573,90257.0,90256.0,0.00111585]
[1765665538553,0.26488573,90257.0,90256.0,0.00011585]
[1765665583442,0.12149,90245.0,90244.0,0.03895997]
[1765665583609,0.12149,90245.0,90244.0,0.13088477]
[1765665584507,0.12149,90245.0,90244.0,0.13188477]
[1765665585159,0.12149,90245.0,90244.0,0.0929248]
[1765665585923,0.12149,90245.0,90244.0,0.31654618]
[1765665586206,0.01079,90250.0,90248.0,0.22160948]
[1765665586403,0.09948573,90257.0,90253.0,0.22159919]
[1765665586764,0.1105652,90257.0,90253.0,0.22159919]
[1765665586966,0.01107959,90256.0,90251.0,0.23268282]
[1765665587163,0.1107,90252.0,90251.0,0.23268282]
[1765665587393,0.1107,90252.0,90251.0,0.3105749]
[1765665587816,0.1107,90252.0,90251.0,0.08897228]
[1765665588992,0.1107,90252.0,90251.0,0.31057647]
[1765665590034,0.1107,90252.0,90251.0,0.34386096]
[1765665590324,0.1107,90252.0,90251.0,0.34486096]
[1765665590678,0.11059607,90252.0,90251.0,0.34586096]
[1765665590878,0.11069606,90254.0,90253.0,0.01107996]
[1765665591086,0.11069606,90254.0,90253.0,0.06237295]
[1765665592583,0.11069606,90254.0,90253.0,0.06337295]
[1765665593447,0.11069606,90254.0,90253.0,0.06437295]
[1765665600179,0.08869573,90257.0,90254.0,0.23267666]
[1765665600449,0.23265064,90265.0,90254.0,0.23267666]
[1765665600450,0.11069606,90268.0,90267.0,0.22156491]
[1765665600620,0.01748,90270.0,90268.0,0.25701058]
[1765665600820,0.10617573,90270.0,90268.0,0.25701058]
[1765665601035,0.01748,90270.0,90269.0,0.04151]
[1765665601534,0.01748,90270.0,90269.0,0.07478655]
[1765665601753,0.01079,90278.0,90275.0,0.23262253]
[1765665601890,0.01107701,90277.0,90273.0,0.0110775]
[1765665602340,0.23244439,90278.0,90273.0,0.0110775]
[1765665602537,0.02198266,90278.0,90274.0,0.0332732]
[1765665602882,0.01119266,90278.0,90274.0,0.04435058]
[1765665603085,0.00011577,90278.0,90275.0,0.10741907]
[1765665603315,0.001,90277.0,90275.0,0.10741907]
[1765665603722,0.00111577,90278.0,90275.0,0.10741907]
[1765665603905,0.01219266,90278.0,90275.0,0.11849633]
[1765665604679,0.01119266,90278.0,90275.0,0.11849633]
[1765665604887,0.01119266,90278.0,90276.0,0.05019223]
[1765665605011,0.01319266,90278.0,90276.0,0.05019223]
[1765665605213,0.01219266,90278.0,90276.0,0.05019223]
[1765665605654,0.01219266,90278.0,90277.0,0.0332732]
[1765665605867,0.01119266,90278.0,90277.0,0.0332732]
[1765665606185,0.01319266,90278.0,90277.0,0.07783996]
[1765665606315,0.01219266,90278.0,90277.0,0.07783996]
[1765665606519,0.01119266,90278.0,90277.0,0.07783996]
[1765665606722,0.01219266,90278.0,90277.0,0.07783996]
[1765665607723,0.00211577,90278.0,90277.0,0.07783996]
[1765665608075,0.15099183,90278.0,90277.0,0.07783996]
[1765665608280,0.17868406,90278.0,90277.0,0.0332732]
[1765665608701,0.18029693,90278.0,90277.0,0.0332732]
[1765665612034,0.15871693,90278.0,90277.0,0.0332732]
[1765665612198,0.15871693,90278.0,90277.0,0.06318734]
[1765665612492,0.18029693,90278.0,90277.0,0.06318734]
[1765665614157,0.19108693,90278.0,90277.0,0.06318734]
[1765665616263,0.16950693,90278.0,90277.0,0.06318734]
[1765665617423,0.19108693,90278.0,90277.0,0.06318734]
[1765665618604,0.22156245,90268.0,90264.0,0.01158]
[1765665618829,0.22157718,90262.0,90258.0,0.01107935]
[1765665619001,0.01107898,90261.0,90257.0,0.01107947]
[1765665619164,0.01107885,90262.0,90258.0,0.28543716]
[1765665619545,0.22158455,90259.0,90258.0,0.05277138]
[1765665619753,0.33228061,90259.0,90258.0,0.05277138]
[1765665619867,0.33228552,90257.0,90256.0,0.03328102]
[1765665620065,0.37046552,90257.0,90256.0,0.03328102]
[1765665621089,0.37046552,90257.0,90256.0,0.03528102]
[1765665621456,0.37046552,90257.0,90256.0,0.03728102]
[1765665621727,0.37046552,90257.0,90256.0,0.03328102]
[1765665621928,0.37046552,90257.0,90256.0,0.06209387]
[1765665622158,0.37046552,90257.0,90256.0,0.06309387]
[1765665622993,0.37046552,90257.0,90256.0,0.06409387]
[1765665624168,0.37046552,90257.0,90256.0,0.03081285]
[1765665624314,0.37046552,90257.0,90256.0,0.002]
[1765665624516,0.38794552,90257.0,90256.0,0.002]
[1765665625226,0.38794552,90257.0,90256.0,0.001]
[1765665625627,0.38894552,90257.0,90256.0,0.001]
[1765665625852,0.42222868,90257.0,90256.0,0.001]
[1765665626050,0.33231744,90244.0,90243.0,0.03328316]
[1765665626343,0.13666606,90244.0,90243.0,0.06771968]
[1765665627256,0.13666606,90244.0,90243.0,0.06971968]
[1765665628325,0.15824606,90244.0,90243.0,0.06971968]
[1765665629689,0.04755,90244.0,90243.0,0.06971968]
[1765665629917,0.15824606,90244.0,90243.0,0.03643652]
[1765665638306,0.18594873,90244.0,90243.0,0.03643652]
[1765665645877,0.16436873,90244.0,90243.0,0.03643652]
[1765665646519,0.18594873,90244.0,90243.0,0.03643652]
[1765665655393,0.18594873,90244.0,90243.0,0.07612184]
[1765665660157,0.18594873,90244.0,90243.0,0.03643652]
[1765665660358,0.18594873,90244.0,90243.0,0.07612184]
[1765665662203,0.16436873,90244.0,90243.0,0.07612184]
[1765665669423,0.13666606,90244.0,90243.0,0.07612184]
[1765665671951,0.16436873,90244.0,90243.0,0.07612184]
[1765665675267,0.13666606,90244.0,90243.0,0.07612184]
[1765665681231,0.13666606,90244.0,90243.0,0.03643652]
[1765665681649,0.16436873,90244.0,90243.0,0.03643652]
[1765665682142,0.16436873,90244.0,90243.0,0.07632346]
[1765665685135,0.13666606,90244.0,90243.0,0.07632346]
[1765665685344,0.13666606,90244.0,90243.0,0.03643652]
[1765665687006,0.13666606,90244.0,90243.0,0.07632548]
[1765665687237,0.13666606,90244.0,90243.0,0.07632556]
[1765665687748,0.16436873,90244.0,90243.0,0.07632556]
[1765665687942,0.16436873,90244.0,90243.0,0.03643652]
[1765665689330,0.13666606,90244.0,90243.0,0.03643652]
[1765665690560,0.11069606,90244.0,90243.0,0.03643652]
[1765665691142,0.11069606,90244.0,90243.0,0.07632698]
[1765665691755,0.11069606,90244.0,90243.0,0.03643652]
[1765665691956,0.11069606,90244.0,90243.0,0.07632868]
[1765665693095,0.11069606,90244.0,90243.0,0.03643652]
[1765665693292,0.11069606,90244.0,90243.0,0.07632801]
[1765665693845,0.11069606,90244.0,90243.0,0.03643652]
[1765665694044,0.11069606,90244.0,90243.0,0.0763278]
[1765665696649,0.11069606,90244.0,90243.0,0.03643652]
[1765665699010,0.11069606,90244.0,90243.0,0.07633996]
[1765665700960,0.11069606,90244.0,90243.0,0.03643652]
[1765665702073,0.11639809,90245.0,90243.0,0.07634054]
[1765665702276,0.11639809,90245.0,90244.0,0.09943663]
[1765665702696,0.08869573,90245.0,90244.0,0.09943663]
[1765665703372,0.08869573,90245.0,90244.0,0.10043663]
[1765665704884,0.08869573,90245.0,90244.0,0.14134065]
[1765665705046,0.08869573,90245.0,90244.0,0.36296203]
[1765665705252,0.08869573,90245.0,90244.0,0.14134065]
[1765665705770,0.11639809,90245.0,90244.0,0.10143663]
[1765665708614,0.08869573,90245.0,90244.0,0.10143663]
[1765665708795,0.11639809,90245.0,90244.0,0.10143663]
[1765665715771,0.11639809,90245.0,90244.0,0.14134065]
[1765665715968,0.08869573,90245.0,90244.0,0.14134065]
[1765665717188,0.11639809,90245.0,90244.0,0.14134065]
[1765665718573,0.08869573,90245.0,90244.0,0.14134065]
[1765665721684,0.64332294,90260.0,90249.0,0.01108045]
[1765665721685,0.11069606,90257.0,90249.0,0.01108045]
[1765665721888,0.08869573,90250.0,90249.0,0.23268924]
[1765665722090,0.08869573,90250.0,90249.0,0.24413924]
[1765665723715,0.08869573,90250.0,90249.0,0.24513924]
[1765665724246,0.08869573,90250.0,90249.0,0.24413924]
[1765665724437,0.08869573,90250.0,90249.0,0.24513924]
[1765665724636,0.08869573,90250.0,90249.0,0.34195482]
[1765665726453,0.08869573,90250.0,90249.0,0.12034603]
[1765665727319,0.08869573,90250.0,90249.0,0.34195513]
[1765665727932,0.08869573,90250.0,90249.0,0.33050513]
[1765665728311,0.08869573,90250.0,90249.0,0.10889603]
[1765665730985,0.08869573,90250.0,90249.0,0.09781558]
[1765665743635,0.08869573,90250.0,90249.0,0.14817558]
[1765665743839,0.08869573,90250.0,90249.0,0.12511558]
[1765665746643,0.08869573,90250.0,90249.0,0.14887558]
[1765665747680,0.08869573,90250.0,90249.0,0.37048468]
[1765665750824,0.08869573,90250.0,90249.0,0.40376814]
[1765665761268,0.08869573,90250.0,90249.0,0.22207489]
[1765665763224,0.01107959,90256.0,90253.0,0.01107996]
[1765665763357,0.08869573,90254.0,90253.0,0.01107996]
[1765665766058,0.08869573,90254.0,90251.0,0.03328346]
[1765665766478,0.08869573,90254.0,90251.0,0.04436366]
[1765665767677,0.08869573,90254.0,90251.0,0.26596569]
[1765665770888,0.08869573,90254.0,90251.0,0.23268223]
[1765665771108,0.09977557,90254.0,90252.0,0.08802937]
[1765665773312,0.08869573,90254.0,90252.0,0.08802937]
[1765665776437,0.08869573,90254.0,90252.0,0.30962902]
[1765665782368,0.08869573,90254.0,90253.0,0.05115]
[1765665782776,0.08869573,90254.0,90253.0,0.02788]
[1765665783075,0.08869573,90254.0,90253.0,0.16953014]
[1765665783277,0.08869573,90254.0,90253.0,0.16289605]
[1765665785567,0.08869573,90254.0,90253.0,0.18616605]
[1765665786185,0.08869573,90254.0,90253.0,0.16289605]
[1765665786382,0.01079,90259.0,90256.0,0.01107959]
[1765665786581,0.01079,90259.0,90257.0,0.28504272]
[1765665786801,0.01079,90259.0,90257.0,0.06345326]
[1765665787041,0.01079,90259.0,90257.0,0.09611211]
[1765665788020,0.01079,90259.0,90257.0,0.06345326]
[1765665788382,0.01079,90259.0,90258.0,0.221587]
[1765665788588,0.01079,90259.0,90258.0,0.30624763]
[1765665791483,0.01079,90263.0,90261.0,0.22157804]
[1765665791641,0.02855849,90265.0,90261.0,0.01107898]
[1765665791963,0.01748,90265.0,90262.0,0.09693026]
[1765665792330,0.01748,90265.0,90262.0,0.13020921]
[1765665792535,0.01748,90265.0,90262.0,0.35178639]
[1765665792739,0.01748,90265.0,90262.0,0.09693026]
[1765665793079,0.001,90263.0,90262.0,0.13020921]
[1765665793422,0.02955849,90265.0,90262.0,0.13020921]
[1765665793798,0.02955849,90265.0,90263.0,0.04720616]
[1765665794788,0.02855849,90265.0,90263.0,0.04720616]
[1765665795462,0.02955849,90265.0,90263.0,0.04720616]
[1765665796211,0.001,90265.0,90264.0,0.02318]
[1765665796424,0.001,90265.0,90264.0,0.0387]
[1765665796623,0.001,90265.0,90264.0,0.10242343]
[1765665797175,0.001,90265.0,90264.0,0.13570238]
[1765665797402,0.08869573,90268.0,90265.0,0.23264831]
[1765665797597,0.08869573,90268.0,90266.0,0.22156551]
[1765665797980,0.08869573,90268.0,90267.0,0.0387]
[1765665798176,0.08869573,90268.0,90267.0,0.10637874]
[1765665801710,0.08869573,90268.0,90267.0,0.09085874]
[1765665807331,0.08869573,90268.0,90267.0,0.10705874]
[1765665807540,0.08869573,90268.0,90267.0,0.13028874]
[1765665807743,0.08869573,90268.0,90267.0,0.16356769]
[1765665811145,0.01079,90277.0,90275.0,0.22154361]
[1765665811346,0.01090577,90277.0,90276.0,0.04652453]
[1765665812166,0.01190577,90277.0,90276.0,0.04652453]
[1765665812368,0.01290577,90277.0,90276.0,0.04652453]
[1765665812599,0.01190577,90277.0,90276.0,0.04652453]
[1765665813201,0.01190577,90277.0,90276.0,0.06400453]
[1765665813998,0.01290577,90277.0,90276.0,0.06400453]
[1765665815305,0.00211577,90277.0,90276.0,0.10343453]
[1765665819921,0.00211577,90277.0,90276.0,0.21423453]
[1765665820287,0.00211577,90277.0,90276.0,0.10343453]
[1765665820698,0.00011577,90277.0,90276.0,0.10343453]
[1765665821116,0.00011577,90277.0,90276.0,0.10543453]
[1765665827281,0.00011577,90277.0,90276.0,0.21623453]
[1765665827702,0.00011577,90277.0,90276.0,0.26625292]
[1765665830679,0.00011577,90277.0,90276.0,0.55695292]
[1765665830891,0.00023867,90298.0,90296.0,0.1108]
[1765665831119,0.00023867,90298.0,90297.0,0.08363544]
[1765665831523,0.00023867,90298.0,90297.0,0.10686544]
[1765665831711,0.00023867,90298.0,90297.0,0.12434544]
[1765665832189,0.00123867,90298.0,90297.0,0.12434544]
[1765665832389,0.00023867,90298.0,90297.0,0.12434544]
[1765665832795,0.00123867,90298.0,90297.0,0.12434544]
[1765665833433,0.00223867,90298.0,90297.0,0.12434544]
[1765665833634,0.00223867,90298.0,90297.0,0.17436383]
[1765665833833,0.00223867,90298.0,90297.0,0.28516383]
[1765665834729,0.00223867,90298.0,90297.0,0.34473042]
[1765665834962,0.00123867,90298.0,90297.0,0.34473042]
[1765665835163,0.00123867,90298.0,90297.0,0.34463776]
[1765665835386,0.00023867,90298.0,90297.0,0.34663776]
[1765665835564,0.00023867,90298.0,90297.0,0.34863776]
[1765665836263,0.00023867,90298.0,90297.0,0.23783776]
[1765665836444,0.00023867,90298.0,90297.0,0.17836383]
[1765665837445,0.00023867,90298.0,90297.0,0.23783776]
[1765665837671,0.00023867,90298.0,90297.0,0.17836383]
[1765665839606,0.00023867,90298.0,90297.0,0.28916383]
[1765665840004,0.00023867,90298.0,90297.0,0.17836383]
[1765665841320,0.14905473,90298.0,90297.0,0.07907544]
[1765665841516,0.14905473,90298.0,90297.0,0.06159544]
[1765665841723,0.14905473,90298.0,90297.0,0.004]
[1765665841919,0.14905473,90298.0,90297.0,0.002]
[1765665842125,0.12177062,90297.0,90294.0,0.01107493]
[1765665842326,0.08869573,90295.0,90294.0,0.01107493]
[1765665842537,0.10523573,90295.0,90294.0,0.01107493]
[1765665842719,0.10523573,90295.0,90294.0,0.07006859]
[1765665842920,0.12681573,90295.0,90294.0,0.05899366]
[1765665843779,0.3322217,90283.0,90282.0,0.02972596]
[1765665843955,0.11069606,90278.0,90277.0,0.02972596]
[1765665844153,0.12723606,90278.0,90277.0,0.02972596]
[1765665844354,0.12723606,90278.0,90276.0,0.04652453]
[1765665844355,0.33223643,90277.0,90276.0,0.04652453]
[1765665844549,0.37035643,90277.0,90276.0,0.04652453]
[1765665844794,0.3719693,90277.0,90276.0,0.04652453]
[1765665845836,0.3719693,90277.0,90276.0,0.001]
[1765665846043,0.33224624,90273.0,90272.0,0.02972596]
[1765665846279,0.34878624,90273.0,90272.0,0.02972596]
[1765665846442,0.34878624,90273.0,90267.0,0.09085874]
[1765665846443,0.33225115,90271.0,90267.0,0.09085874]
[1765665846625,0.22156736,90266.0,90265.0,0.02972596]
[1765665846827,0.08869573,90267.0,90265.0,0.00011577]
[1765665848495,0.08869573,90267.0,90265.0,0.00111577]
[1765665849096,0.01654,90266.0,90265.0,0.00111577]
[1765665849249,0.37038342,90266.0,90265.0,0.03032178]
[1765665849462,0.37038342,90266.0,90265.0,0.00111577]
[1765665849760,0.37038342,90266.0,90265.0,0.00311577]
[1765665850188,0.14881606,90266.0,90265.0,0.00111577]
[1765665851505,0.37038342,90266.0,90265.0,0.00011577]
[1765665852492,0.02733,90260.0,90258.0,0.01107935]
[1765665852743,0.02733,90260.0,90259.0,0.04775913]
[1765665854418,0.04891,90260.0,90259.0,0.04775913]
[1765665854619,0.04891,90260.0,90259.0,0.04875913]
[1765665855251,0.02733,90260.0,90259.0,0.04875913]
[1765665855501,0.02733,90260.0,90259.0,0.04975913]
[1765665856585,0.04891,90260.0,90259.0,0.04975913]
[1765665857021,0.15960606,90260.0,90259.0,0.04975913]
[1765665862797,0.11069606,90265.0,90263.0,0.01107873]
[1765665863014,0.11069606,90265.0,90264.0,0.05261592]
[1765665863416,0.12722606,90265.0,90264.0,0.05261592]
[1765665863915,0.14880606,90265.0,90264.0,0.05261592]
[1765665864141,0.37037588,90265.0,90264.0,0.05261592]
[1765665864349,0.11069606,90260.0,90259.0,0.04775913]
[1765665864526,0.12722606,90260.0,90259.0,0.04775913]
[1765665864720,0.14880606,90260.0,90259.0,0.04775913]
[1765665865578,0.03811,90260.0,90259.0,0.04775913]
[1765665865806,0.14880606,90260.0,90259.0,0.04875913]
[1765665866628,0.14880606,90260.0,90259.0,0.04975913]
[1765665867136,0.01653,90260.0,90259.0,0.04975913]
[1765665868396,0.14880606,90260.0,90259.0,0.04975913]
[1765665868595,0.37038815,90260.0,90259.0,0.04975913]
[1765665868753,0.37038815,90260.0,90259.0,0.002]
[1765665875305,0.37038815,90260.0,90259.0,0.001]
[1765665875961,0.33230025,90251.0,90250.0,0.03963144]
[1765665876177,0.11069606,90247.0,90246.0,0.07055475]
[1765665876387,0.11069606,90247.0,90246.0,0.18106237]
[1765665877022,0.11069606,90247.0,90246.0,0.16998155]
[1765665877233,0.11069606,90247.0,90246.0,0.11250762]
[1765665878095,0.37002007,90247.0,90246.0,0.11250762]
[1765665878310,0.37002007,90247.0,90246.0,0.11450762]
[1765665878311,0.34844007,90247.0,90246.0,0.11450762]
[1765665879587,0.23774401,90247.0,90246.0,0.11450762]
[1765665882016,0.23774401,90247.0,90246.0,0.004]
[1765665883156,0.23774401,90247.0,90246.0,0.04385665]
[1765665884749,0.23774401,90247.0,90246.0,0.004]
[1765665884954,0.25932401,90247.0,90246.0,0.004]
[1765665886283,0.314719,90247.0,90246.0,0.004]
[1765665886628,0.37002007,90247.0,90246.0,0.004]
[1765665887152,0.25932401,90247.0,90246.0,0.04654937]
[1765665887311,0.37002007,90247.0,90246.0,0.04654937]
[1765665889329,0.37002007,90247.0,90246.0,0.04454937]
[1765665889551,0.37002007,90247.0,90246.0,0.04354937]
[1765665891039,0.37002007,90247.0,90246.0,0.04454937]
[1765665892141,0.25932401,90247.0,90246.0,0.04454937]
[1765665892507,0.37002007,90247.0,90246.0,0.04454937]
[1765665897031,0.37002007,90247.0,90246.0,0.002]
[1765665902076,0.37002007,90247.0,90246.0,0.001]
[1765665903723,0.27702373,90241.0,90240.0,0.3]
[1765665903936,0.31100373,90241.0,90240.0,0.3]
[1765665904150,0.33258373,90241.0,90240.0,0.3]
[1765665904377,0.33258373,90241.0,90240.0,0.33398566]
[1765665906428,0.33258373,90241.0,90240.0,0.3]
[1765665906429,0.3878848,90241.0,90240.0,0.3]
[1765665912484,0.38949767,90241.0,90240.0,0.3]
[1765665919394,0.27880161,90241.0,90240.0,0.3]
[1765665919549,0.38949767,90241.0,90240.0,0.3]
[1765665919902,0.27880161,90241.0,90240.0,0.3]
[1765665920105,0.38949767,90241.0,90240.0,0.3]
[1765665921186,0.38949767,90241.0,90240.0,0.31764135]
[1765665924870,0.38949767,90241.0,90240.0,0.3]
[1765665947848,0.68019767,90241.0,90240.0,0.3]
[1765665949216,0.69058741,90241.0,90240.0,0.3]
[1765665949415,0.68019767,90241.0,90240.0,0.3]
[1765665950239,0.68119767,90241.0,90240.0,0.3]
[1765665950755,0.68019767,90241.0,90240.0,0.3]
[1765665950953,0.68219767,90241.0,90240.0,0.3]
[1765665952269,0.71549624,90241.0,90240.0,0.3]
[1765665952463,0.73239613,90241.0,90240.0,0.3]
[1765665955516,0.71549624,90241.0,90240.0,0.3]
[1765665955701,0.54992161,90241.0,90240.0,0.33]